bitfinex/quotes_ETHUSD_20220109
["timestamp","ask_amount","ask_price","bid_price","bid_amount"]
[1641692362774,1.61835095,3110.9,3109.5,2.51126669]
[1641692362967,0.47375095,3110.9,3109.6,0.00170527]
[1641692363168,0.00113685,3110.3,3109.6,0.00284211]
[1641692363670,0.80521685,3110.3,3109.3,0.00454738]
[1641692364068,1.10521685,3110.3,3109.3,0.00454738]
[1641692364269,0.60113685,3110.3,3109.3,0.00454738]
[1641692364468,0.30113685,3110.3,3109.3,0.00454738]
[1641692364869,0.00113685,3110.3,3109.3,0.00454738]
[1641692365067,0.00113685,3110.3,3109.1,2.79871643]
[1641692365269,0.00113685,3110.3,3109.2,0.00511581]
[1641692365468,1.47375095,3110.9,3109.2,0.00511581]
[1641692365469,1.12955095,3110.9,3109.2,0.00511581]
[1641692365668,0.63588891,3109.7,3109.0,2.4930322]
[1641692365868,0.63588891,3109.7,3109.0,0.0073895]
[1641692366067,1.6089,3110.1,3109.1,0.00682108]
[1641692366269,0.8044601,3109.8,3109.0,4.09962901]
[1641692366515,1.60893,3109.5,3109.0,4.09962901]
[1641692366714,1.60893,3109.5,3109.1,0.00682108]
[1641692367115,1.6089,3110.1,3110.0,5.94077672]
[1641692367318,1.6089,3110.1,3109.1,0.00682108]
[1641692367319,0.3,3110.0,3109.1,0.00682108]
[1641692367516,0.3,3110.0,3108.9,4.09223951]
[1641692367717,0.80442,3109.5,3108.9,4.09223951]
[1641692368415,0.80442,3109.5,3108.6,4.09223951]
[1641692368817,1.10442,3109.5,3108.7,0.00909477]
[1641692369019,0.8045,3109.1,3108.7,0.00909477]
[1641692369822,0.8045,3109.1,3108.5,0.01023162]
[1641692370122,4.15496168,3109.7,3108.6,4.09223951]
[1641692370569,0.3,3109.6,3108.6,4.09223951]
[1641692370770,0.80454,3109.5,3108.6,4.09223951]
[1641692370972,0.8045,3109.1,3108.6,4.09223951]
[1641692371372,4.15496168,3109.7,3108.5,0.01023162]
[1641692371373,5.7298252,3110.0,3108.5,4.10247113]
[1641692371572,5.7314252,3110.0,3108.5,4.10247113]
[1641692371771,6.0,3109.8,3108.6,0.0096632]
[1641692372178,1.609,3109.2,3108.6,0.0096632]
[1641692372374,1.609,3109.2,3108.5,0.01023162]
[1641692373071,1.609,3109.2,3108.6,1.165836]
[1641692373272,2.82703149,3109.9,3108.6,1.165836]
[1641692373471,3.29203149,3109.9,3108.6,1.17814181]
[1641692373673,0.80445,3109.7,3108.6,0.01230581]
[1641692373873,1.609,3109.2,3108.6,0.01230581]
[1641692374617,1.609,3109.2,3108.5,0.01023162]
[1641692375020,1.609,3109.2,3108.3,0.01136847]
[1641692375618,1.609,3109.2,3108.1,0.01250531]
[1641692375818,2.75,3109.1,3108.2,0.01193689]
[1641692376019,0.80455,3108.6,3108.1,4.10474482]
[1641692376220,0.80455,3108.6,3108.2,0.01193689]
[1641692377220,4.8,3108.5,3108.1,4.04223951]
[1641692377421,0.80477,3108.3,3108.1,4.04223951]
[1641692378462,0.80477,3108.3,3107.4,0.69920616]
[1641692378864,0.80477,3108.3,3107.5,0.00397897]
[1641692379565,0.80477,3108.3,3107.3,0.00511581]
[1641692380366,0.80477,3108.3,3107.2,0.00568424]
[1641692380970,2.00755204,3108.7,3107.3,3.0]
[1641692381370,0.00113684,3108.6,3107.4,0.00568424]
[1641692381614,0.80477,3108.5,3107.4,0.00568424]
[1641692381813,0.80476,3108.0,3107.4,0.00568424]
[1641692382214,0.80476,3108.0,3107.2,0.00682109]
[1641692383416,2.51276,3108.0,3107.2,0.00682109]
[1641692383616,1.26994,3107.9,3107.2,0.00682109]
[1641692383816,1.60996,3107.6,3107.2,0.00682109]
[1641692384215,0.20024476,3108.2,3107.2,0.00682109]
[1641692384417,0.8049866,3107.8,3107.2,0.00682109]
[1641692384917,0.805,3107.5,3107.2,0.00682109]
[1641692385962,48.52858354,3107.6,3107.2,0.00682109]
[1641692386162,0.124,3108.2,3107.5,1.05906817]
[1641692386362,2.87934,3108.3,3107.2,0.00682109]
[1641692386565,0.80479,3107.8,3107.6,0.00454739]
[1641692386763,1.6096,3108.0,3107.2,0.00682109]
[1641692388463,2.41441,3108.2,3108.0,1.69668864]
[1641692388665,2.41441,3108.2,3107.2,0.00682109]
[1641692388867,2.41441,3108.2,3108.1,0.00170527]
[1641692389114,4.02423,3108.2,3107.2,0.00682109]
[1641692389317,4.02423,3108.2,3107.2,2.45536041]
[1641692389516,0.00113684,3108.6,3107.8,0.01272683]
[1641692389716,0.00113684,3108.6,3107.8,0.84182683]
[1641692389915,0.00113684,3108.6,3107.9,2.45138144]
[1641692390117,0.00113684,3108.6,3108.3,1.14691823]
[1641692390516,0.00113684,3108.6,3108.3,1.75280497]
[1641692390725,0.00113684,3108.6,3108.3,1.14691823]
[1641692391318,0.00113684,3108.6,3108.5,6.42117041]
[1641692391518,1.57446197,3109.4,3108.6,3.9]
[1641692391916,0.00397897,3109.3,3108.6,3.9]
[1641692392117,0.00397897,3109.3,3108.5,0.01253465]
[1641692392316,0.00341054,3109.2,3108.5,0.01253465]
[1641692392519,0.8044,3109.0,3108.3,1.14691823]
[1641692392776,0.8044,3109.0,3108.1,1.6087642]
[1641692392966,0.00170527,3108.9,3108.7,1.62566903]
[1641692393374,0.00113685,3108.8,3108.7,1.62566903]
[1641692393567,1.61016685,3108.8,3108.7,1.62566903]
[1641692393968,1.61016685,3108.8,3108.5,1.62566903]
[1641692394670,0.00113685,3108.8,3108.6,1.62566903]
[1641692395471,0.00113685,3108.8,3108.5,1.62566903]
[1641692395874,0.80447,3108.7,3108.5,1.62566903]
[1641692396271,0.80447,3108.7,3108.6,1.62566903]
[1641692397311,0.80447,3108.7,3108.4,1.62566903]
[1641692397913,0.80447,3108.7,3108.5,1.62566903]
[1641692398612,0.80447,3108.7,3108.4,1.62566903]
[1641692399112,0.80447,3108.7,3108.2,1.62794272]
[1641692399513,0.80447,3108.7,3108.3,0.00170527]
[1641692399913,0.00113685,3108.8,3108.3,0.80615197]
[1641692400368,0.00113685,3108.8,3108.4,0.00113684]
[1641692401569,0.00113685,3108.8,3108.4,0.80550684]
[1641692401770,0.00113685,3108.8,3106.8,1.0]
[1641692401771,1.87013036,3107.2,3106.8,1.0]
[1641692401975,6.62013036,3107.2,3106.8,1.0]
[1641692402168,6.92013036,3107.2,3107.1,0.94307721]
[1641692402368,6.6903454,3107.2,3106.7,5.5004936]
[1641692402566,7.6903454,3107.2,3106.7,5.5004936]
[1641692402768,7.6903454,3107.2,3106.8,0.00170527]
[1641692402968,36.61160447,3106.9,3106.7,5.5004936]
[1641692403169,38.22179447,3106.9,3106.7,5.5004936]
[1641692403367,38.22179447,3106.9,3105.7,3.6167]
[1641692403571,36.61160447,3106.9,3105.7,3.6167]
[1641692403767,36.68181951,3106.9,3105.8,0.00568423]
[1641692404021,0.80513,3106.7,3105.8,0.83593368]
[1641692404226,1.61025,3106.3,3105.8,0.83593368]
[1641692404423,1.61025,3106.3,3105.9,0.00511581]
[1641692408966,1.61025,3106.3,3105.9,1.581e-05]
[1641692409169,1.61025,3106.3,3105.2,6.38]
[1641692409170,0.3051,3105.8,3105.2,1.0]
[1641692409369,6.07041,3105.7,3105.2,1.0]
[1641692409569,6.07041,3105.7,3105.3,0.00170527]
[1641692409570,0.80531,3105.6,3105.3,0.00170527]
[1641692409770,0.465,3105.5,3105.3,0.00170527]
[1641692409968,0.465,3105.5,3104.4,3.6727]
[1641692409969,4.8,3105.4,3104.4,3.6727]
[1641692410169,0.465,3105.3,3104.8,0.00284212]
[1641692410367,1.465,3105.3,3104.8,0.00284212]
[1641692410568,1.765,3105.3,3104.8,0.00284212]
[1641692410966,2.5705385,3105.3,3104.8,0.00284212]
[1641692411166,2.5705385,3105.3,3104.3,0.00568424]
[1641692411370,1.61111,3104.8,3104.4,1.6266916]
[1641692411621,5.60567,3104.6,3104.2,0.00625266]
[1641692411818,1.27075,3104.5,3103.6,6.16]
[1641692412020,0.80575,3104.5,3104.2,0.00625266]
[1641692412219,1.00932186,3105.5,3104.2,0.00625266]
[1641692412419,1.13790072,3105.6,3104.2,0.00625266]
[1641692412420,0.465,3105.6,3104.3,0.01244694]
[1641692412619,0.3051,3105.8,3104.7,4.39059955]
[1641692412825,0.80539,3105.3,3104.4,3.94701581]
[1641692413018,0.465,3105.7,3104.4,3.94701581]
[1641692413019,0.46727369,3105.7,3104.8,0.00284212]
[1641692413217,0.46727369,3105.7,3104.5,0.00454739]
[1641692413419,0.00170527,3105.6,3104.5,0.00454739]
[1641692413625,1.61083,3105.1,3104.5,0.00454739]
[1641692413818,1.61083,3105.1,3104.4,0.00511581]
[1641692414621,0.465,3105.0,3104.4,0.00511581]
[1641692414821,0.80563,3104.7,3104.4,0.00511581]
[1641692415020,0.80563,3104.7,3104.3,0.00568424]
[1641692415979,0.80563,3104.7,3103.9,0.00795793]
[1641692416179,0.80569,3104.6,3103.9,0.00795793]
[1641692416380,0.80569,3104.6,3103.8,0.00852635]
[1641692416580,0.80568,3104.2,3103.3,1.01136847]
[1641692416778,0.80568,3104.2,3103.3,1.31136847]
[1641692416978,0.80568,3104.2,3103.4,0.01080005]
[1641692417379,0.80568,3104.2,3103.4,1.30931464]
[1641692417581,0.80568,3104.2,3103.4,2.60931464]
[1641692417780,0.80568,3104.2,3103.5,0.01023162]
[1641692417982,1.0,3104.8,3104.6,2.63147032]
[1641692418181,4.8,3104.7,3103.5,0.01023162]
[1641692418383,0.805744,3104.5,3103.2,4.06979119]
[1641692418582,0.80583,3104.1,3103.2,4.06979119]
[1641692418783,0.80583,3103.7,3103.3,0.01136847]
[1641692419221,1.80583,3103.7,3103.2,0.01193689]
[1641692420622,1.80583,3103.7,3103.0,0.01307374]
[1641692421222,1.80583,3103.7,3103.5,1.61664418]
[1641692421422,3.45708,3103.8,3103.5,1.61664418]
[1641692421622,3.45708,3103.8,3103.6,0.0096632]
[1641692422426,3.92208,3103.8,3103.6,0.0096632]
[1641692422885,0.80583,3103.7,3103.6,0.0096632]
[1641692424282,0.80583,3103.7,3103.6,1.62630738]
[1641692424981,0.80583,3103.7,3103.6,0.0096632]
[1641692426183,0.80583,3103.7,3103.5,0.01023162]
[1641692428426,3.11615,3103.8,3103.2,1.61664418]
[1641692428427,5.60595,3103.8,3103.2,1.61664418]
[1641692428828,0.80710775,3103.7,3103.3,0.00113685]
[1641692429029,1.24894671,3103.9,3103.3,0.00113685]
[1641692429327,1.24894671,3103.9,3103.1,1.61664418]
[1641692429328,1.0,3103.7,3103.2,0.00284212]
[1641692429529,0.3,3103.7,3103.2,0.00284212]
[1641692429734,1.1059709,3103.7,3103.2,0.00284212]
[1641692429927,1.9118009,3103.7,3103.1,0.00341055]
[1641692430126,2.1059709,3103.7,3103.1,0.00341055]
[1641692430672,2.1059709,3103.7,3103.0,0.00397897]
[1641692430874,0.80598,3103.4,3103.0,0.00397897]
[1641692431875,0.77073091,3103.5,3103.0,0.00397897]
[1641692432276,1.57673091,3103.5,3103.0,0.00397897]
[1641692432475,0.80598,3103.4,3103.0,0.00397897]
[1641692433777,2.10598,3103.4,3103.0,0.00397897]
[1641692434828,2.40598,3103.4,3103.0,0.00397897]
[1641692435227,1.80598,3103.4,3103.0,1.06769742]
[1641692435429,1.80598,3103.4,3103.0,3.20499398]
[1641692435430,0.80598,3103.4,3103.0,3.20499398]
[1641692435626,0.80573,3103.7,3103.1,0.00341055]
[1641692435826,0.80573,3103.7,3103.6,1.11234086]
[1641692436026,2.41746,3104.2,3103.6,5.90549884]
[1641692436027,0.00113684,3103.9,3103.6,5.90549884]
[1641692436226,0.00113684,3103.9,3103.6,5.91795946]
[1641692436427,0.00227369,3104.1,3103.6,5.91795946]
[1641692436825,0.00170526,3104.0,3103.8,0.64351555]
[1641692437226,0.80562,3104.1,3103.8,0.64351555]
[1641692437431,0.80562,3104.1,3103.7,2.28894647]
[1641692437629,0.80562,3104.1,3103.6,1.12480148]
[1641692437630,0.00170526,3104.0,3103.6,1.12480148]
[1641692438873,0.80568,3103.8,3103.6,1.12480148]
[1641692439072,0.80132831,3103.8,3103.6,1.12480148]
[1641692439474,0.80132831,3103.8,3103.7,6.97816947]
[1641692439675,0.00170526,3104.0,3103.7,8.04076947]
[1641692440275,0.00170526,3104.0,3103.8,1.0]
[1641692440477,0.00170526,3104.0,3103.9,7.32713647]
[1641692440675,5.583,3105.2,3104.6,1.26603394]
[1641692440879,0.465,3105.3,3104.5,0.7864]
[1641692441078,0.80543,3104.8,3104.5,0.7864]
[1641692441522,1.61711266,3105.1,3104.0,1.1492]
[1641692441523,0.00397897,3104.7,3104.0,1.1492]
[1641692441724,0.30397897,3104.7,3103.9,1.61664418]
[1641692441924,0.00341054,3104.6,3103.9,1.61664418]
[1641692442323,0.00284212,3104.5,3103.7,5.22894016]
[1641692442826,0.0022737,3104.4,3103.8,0.00113684]
[1641692443222,0.00170527,3104.3,3103.8,0.00113684]
[1641692443623,2.10569,3104.6,3103.8,0.00113684]
[1641692443624,0.00113685,3104.2,3103.8,0.00113684]
[1641692443823,0.80568,3104.0,3103.8,0.00113684]
[1641692444023,0.80568,3104.0,3103.8,1.61778102]
[1641692444228,0.44558199,3104.7,3103.8,1.61778102]
[1641692444426,0.44558199,3104.7,3103.9,0.00341054]
[1641692444625,0.80569,3104.6,3103.9,0.00341054]
[1641692444826,1.44558199,3104.7,3103.1,4.06979119]
[1641692444827,4.8,3104.2,3103.1,4.06979119]
[1641692445127,0.80586,3103.7,3103.3,0.60529446]
[1641692445382,0.80586,3103.7,3103.5,1.62707623]
[1641692445774,0.80586,3103.7,3103.6,0.00170527]
[1641692446474,0.80586,3103.7,3103.6,2.73874335]
[1641692446876,0.80586,3103.7,3103.6,4.94292584]
[1641692447276,0.80586,3103.7,3103.6,1.11166712]
[1641692448277,0.80586,3103.7,3103.6,0.00170527]
[1641692448676,0.80586,3103.7,3103.4,0.00284212]
[1641692449323,0.80586,3103.7,3103.1,2.11015333]
[1641692449623,0.40140782,3103.8,3103.5,3.0]
[1641692449824,0.40140782,3103.8,3103.5,5.1645068]
[1641692450024,0.40140782,3103.8,3103.6,0.00170527]
[1641692450825,0.00284212,3104.4,3103.6,0.82711109]
[1641692451027,0.00284212,3104.4,3103.7,2.41268908]
[1641692451228,1.61098,3104.7,3104.0,0.8054661]
[1641692451229,0.00227369,3104.3,3104.0,0.8054661]
[1641692451426,0.00227369,3104.3,3104.0,1.0501661]
[1641692451626,0.00170527,3104.2,3104.0,0.2447]
[1641692452028,0.00113685,3104.1,3104.0,0.2447]
[1641692452425,0.00113685,3104.1,3103.8,4.06979119]
[1641692452877,0.00113685,3104.1,3103.7,0.00113685]
[1641692453078,0.00113685,3104.1,3103.7,2.15026294]
[1641692453271,0.00113685,3104.1,3103.7,0.00113685]
[1641692453473,0.80564,3104.0,3103.7,2.12879373]
[1641692453673,0.80564,3104.0,3103.7,4.07092804]
[1641692454574,0.80564,3104.0,3103.7,0.00113685]
[1641692454972,0.80564,3104.0,3103.6,0.00170527]
[1641692455375,0.80564,3104.0,3103.4,0.00284212]
[1641692455773,0.80595,3103.8,3103.4,0.00284212]
[1641692455973,0.80591,3103.6,3103.4,0.00284212]
[1641692456372,0.80591,3103.6,3103.1,0.00454739]
[1641692458025,0.80591,3103.6,3103.0,0.00511581]
[1641692458429,0.70591,3103.6,3103.0,0.00511581]
[1641692460476,0.70591,3103.6,3103.2,1.29560016]
[1641692460677,0.70591,3103.6,3103.3,2.23944592]
[1641692460880,0.70591,3103.6,3103.3,2.24285646]
[1641692461076,0.70591,3103.6,3103.4,0.00284212]
[1641692461480,0.70591,3103.6,3103.3,2.14940379]
[1641692461678,0.70591,3103.6,3103.4,0.00284212]
[1641692464237,1.61182,3103.7,3103.4,0.00284212]
[1641692464741,0.00113685,3104.1,3103.7,1.42351209]
[1641692464939,0.00113685,3104.1,3103.8,2.61806136]
[1641692465942,0.00113685,3104.1,3103.6,2.24734882]
[1641692466339,0.00113685,3104.1,3103.7,0.00113685]
[1641692466940,0.80670685,3104.1,3103.7,0.00113685]
[1641692467785,0.80670685,3104.1,3103.5,0.00227369]
[1641692467976,1.80670685,3104.1,3103.5,0.00227369]
[1641692468177,1.80670685,3104.1,3103.0,0.00511581]
[1641692468777,1.80694685,3104.1,3103.0,0.00511581]
[1641692468979,0.8058,3103.6,3103.0,0.00511581]
[1641692471636,0.8058,3103.6,3103.5,1.64121227]
[1641692472029,0.8058,3103.6,3102.9,0.9356877]
[1641692472030,5.0558,3103.6,3102.9,0.9356877]
[1641692472230,0.80596,3103.3,3102.9,0.9356877]
[1641692472431,0.80596,3103.3,3103.0,0.00284212]
[1641692472634,0.77089892,3103.4,3103.0,0.00284212]
[1641692473738,1.57685892,3103.4,3103.0,0.00284212]
[1641692473935,0.80596,3103.3,3103.0,0.00284212]
[1641692476685,0.80596,3103.3,3103.2,1.40073563]
[1641692476883,0.8057,3103.5,3103.2,1.40073563]
[1641692477183,0.00284211,3104.0,3103.8,1.952662]
[1641692477583,0.00227369,3103.9,3103.8,1.952662]
[1641692478383,0.00227369,3103.9,3103.3,3.22345855]
[1641692478584,0.00227369,3103.9,3103.3,0.00113685]
[1641692478787,0.00170527,3103.8,3103.3,0.00113685]
[1641692479024,0.00170527,3103.8,3103.1,0.0022737]
[1641692479225,0.80579,3103.5,3103.1,0.0022737]
[1641692479625,0.80579,3103.5,3103.4,1.87685339]
[1641692480225,0.80579,3103.5,3103.4,2.17685339]
[1641692480425,0.00454738,3104.3,3103.4,2.47685339]
[1641692480426,0.80564,3103.7,3103.4,2.47685339]
[1641692480627,0.00454738,3104.3,3103.6,0.8055786]
[1641692480828,2.27059,3104.8,3103.6,0.8055786]
[1641692480829,0.00397896,3104.2,3103.9,1.4008864]
[1641692481027,0.00397896,3104.2,3103.6,0.8055786]
[1641692481330,2.27059,3104.8,3103.4,4.13908032]
[1641692481331,0.00341054,3104.1,3103.4,4.13908032]
[1641692481527,0.80563,3103.8,3103.4,2.52792322]
[1641692481826,0.00113684,3103.7,3103.4,2.52792322]
[1641692482027,0.00113684,3103.7,3103.4,2.15830322]
[1641692482326,0.00113684,3103.7,3103.5,3.22443213]
[1641692482527,0.00113684,3103.7,3103.5,2.22443213]
[1641692483179,0.00113684,3103.7,3103.5,3.22443213]
[1641692483382,0.00113684,3103.7,3103.6,0.3]
[1641692483580,0.80556,3104.0,3103.6,6.35]
[1641692483779,0.80556,3104.0,3103.7,0.8055645]
[1641692483985,0.00113685,3103.9,3103.7,0.8055645]
[1641692484180,0.00113685,3103.9,3103.7,1.1055645]
[1641692491276,0.00113685,3103.9,3103.5,2.4166755]
[1641692491478,0.00113685,3103.9,3103.5,0.8056255]
[1641692491879,0.00113685,3103.9,3103.4,0.75272322]
[1641692492276,0.00113685,3103.9,3103.5,0.00113684]
[1641692492679,0.80567,3103.8,3103.5,0.00113684]
[1641692493481,0.80567,3103.8,3103.5,0.80677184]
[1641692495129,0.80567,3103.8,3103.6,0.8055519]
[1641692495330,0.00113685,3103.9,3103.6,1.1055519]
[1641692495529,0.00113685,3103.9,3103.6,0.6]
[1641692495730,0.00113685,3103.9,3103.6,2.2110366]
[1641692496031,0.00113685,3103.9,3103.7,0.3]
[1641692496232,0.00113685,3103.9,3103.8,8.23728173]
[1641692496430,0.00113685,3103.9,3103.8,8.53728173]
[1641692496630,0.00113685,3103.9,3103.8,28.37728173]
[1641692496631,3.685e-05,3103.9,3103.8,28.37728173]
[1641692497329,3.6024,3105.5,3104.0,0.5]
[1641692497538,5.21291,3105.5,3104.6,1.10526]
[1641692497796,0.00852635,3105.4,3104.6,0.3]
[1641692497981,0.80527,3105.1,3104.7,2.18717395]
[1641692498182,0.80527,3105.1,3104.5,1.910518]
[1641692498381,0.00625266,3105.0,3104.2,6.07946]
[1641692498681,1.61648423,3104.9,3104.8,1.63822631]
[1641692499482,1.61648423,3104.9,3104.6,1.63822631]
[1641692499685,1.61648423,3104.9,3104.7,1.05190343]
[1641692499885,0.96414492,3106.3,3105.4,1.35072418]
[1641692500084,0.84094492,3106.3,3105.5,2.24961368]
[1641692500385,0.8051,3105.9,3105.6,0.3]
[1641692500582,5.1126,3106.7,3105.6,0.3]
[1641692500984,1.61019,3106.2,3105.7,0.75588651]
[1641692501183,1.61019,3106.2,3105.7,3.00588651]
[1641692501384,5.1126,3106.7,3105.7,3.00588651]
[1641692501385,0.31021582,3105.8,3105.7,5.15312776]
[1641692502629,0.31021582,3105.8,3105.7,7.15502776]
[1641692502930,0.31021582,3105.8,3105.7,7.45502776]
[1641692503132,1.582e-05,3105.8,3105.7,8.94914125]
[1641692503731,1.87013036,3107.2,3105.8,4.8]
[1641692503930,0.80484,3107.0,3106.2,0.80484]
[1641692504129,0.80484,3107.0,3106.3,2.26514349]
[1641692504529,0.80484,3107.0,3106.7,0.73377502]
[1641692506483,0.80484,3107.0,3106.4,1.3]
[1641692506681,0.80484,3107.0,3106.4,0.6]
[1641692506883,0.80484,3107.0,3106.1,1.6096629]
[1641692507083,0.80484,3107.0,3106.0,3.8877]
[1641692507782,0.80484,3107.0,3106.0,4.51881929]
[1641692510831,0.80484,3107.0,3106.0,3.8877]
[1641692511334,0.465,3106.9,3105.4,1.63822631]
[1641692511533,0.80531,3106.2,3105.4,1.63822631]
[1641692511732,0.80531,3106.2,3105.5,0.00170527]
[1641692511931,0.00170527,3106.1,3105.5,0.00170527]
[1641692512231,0.00113684,3106.0,3105.4,0.0022737]
[1641692512630,0.00227369,3106.2,3105.4,0.0022737]
[1641692512877,0.43177405,3106.4,3105.4,0.0022737]
[1641692513075,0.80518,3106.7,3105.4,0.0022737]
[1641692513375,0.00170527,3106.5,3105.4,0.00454739]
[1641692513674,0.465,3106.8,3105.4,0.00454739]
[1641692513675,1.61061,3106.3,3105.4,0.00454739]
[1641692514776,0.8051,3106.0,3105.4,0.80964409]
[1641692515176,0.8051,3106.0,3105.5,0.00397896]
[1641692515778,1.61061,3106.3,3105.8,1.18908643]
[1641692515978,0.80503,3106.2,3105.9,2.11056036]
[1641692516279,0.80503,3106.2,3106.0,0.00113685]
[1641692517546,0.80503,3106.2,3105.9,2.11098702]
[1641692517744,0.80503,3106.2,3106.0,0.00113685]
[1641692518942,1.61226369,3106.6,3106.0,0.00113685]
[1641692519342,1.61226369,3106.6,3106.3,0.72664565]
[1641692520779,1.61226369,3106.6,3106.0,0.00113685]
[1641692521181,1.61226369,3106.6,3105.8,0.00227369]
[1641692521679,1.61226369,3106.6,3105.8,1.80726369]
[1641692521880,1.61226369,3106.6,3105.9,3.41850264]
[1641692522080,1.61226369,3106.6,3106.3,0.67125783]
[1641692522281,1.61226369,3106.6,3106.0,0.00113685]
[1641692522685,1.61226369,3106.6,3105.9,0.00170527]
[1641692522881,0.80724369,3106.6,3105.9,2.13669458]
[1641692523281,0.80724369,3106.6,3106.0,0.00113685]
[1641692523484,0.80724369,3106.6,3106.1,1.11549107]
[1641692523882,0.80724369,3106.6,3106.5,0.8509195]
[1641692525236,0.80724369,3106.6,3106.0,0.00113685]
[1641692525830,0.465,3106.5,3106.0,0.00113685]
[1641692526033,0.80532,3106.1,3105.4,1.62709892]
[1641692526232,1.61065,3105.6,3105.4,1.62709892]
[1641692526430,0.0022737,3106.4,3105.5,0.00284211]
[1641692526630,0.0022737,3106.4,3105.5,2.37680757]
[1641692526831,0.00170527,3106.3,3105.9,1.21088422]
[1641692527230,0.00113685,3106.2,3106.1,0.85898811]
[1641692528679,0.00113685,3106.2,3106.1,3.00806725]
[1641692529078,0.00113685,3106.2,3106.1,0.85898811]
[1641692530681,0.00113685,3106.2,3106.1,3.0082706]
[1641692531727,0.00113685,3106.2,3106.1,4.63536952]
[1641692534626,0.80491,3106.6,3106.2,3.45]
[1641692534827,0.80491,3106.6,3106.3,3.07168371]
[1641692535028,0.00170527,3106.5,3106.3,3.07168371]
[1641692535284,0.00170527,3106.5,3106.4,2.14225732]
[1641692535484,0.80491,3106.6,3106.4,2.14225732]
[1641692535688,0.80491,3106.6,3106.2,2.22924032]
[1641692535886,0.80491,3106.6,3106.3,1.62956942]
[1641692536486,4.8,3106.5,3105.6,0.00227369]
[1641692536687,0.80525,3106.1,3105.6,0.00227369]
[1641692536885,0.80525,3106.1,3105.4,0.00454739]
[1641692538292,0.80525,3106.1,3105.6,1.0988617]
[1641692538490,0.00113685,3106.4,3105.7,3.18338028]
[1641692538690,0.80498,3106.3,3105.8,0.8049847]
[1641692538890,0.00113685,3106.4,3105.8,0.00227369]
[1641692539129,0.00113685,3106.4,3105.9,0.00170527]
[1641692539331,0.00113685,3106.4,3105.8,0.00227369]
[1641692539528,0.00113685,3106.4,3105.9,0.80497]
[1641692539729,0.80499,3106.3,3106.0,0.8049875]
[1641692539929,0.80499,3106.3,3106.1,1.10727603]
[1641692540129,0.80499,3106.3,3106.2,0.77028808]
[1641692541531,0.00113685,3106.4,3106.2,4.00007177]
[1641692541731,0.00113685,3106.4,3106.3,4.46853681]
[1641692542532,0.00113685,3106.4,3106.3,5.76853681]
[1641692542777,0.00113685,3106.4,3106.2,4.18707768]
[1641692542976,0.00113685,3106.4,3106.2,3.18487768]
[1641692543178,0.00113685,3106.4,3106.2,0.77028808]
[1641692543779,0.80607685,3106.4,3106.2,0.77028808]
[1641692545283,0.80607685,3106.4,3106.3,3.40286543]
[1641692545881,6.10098,3107.8,3106.3,3.40286543]
[1641692546085,6.10098,3107.8,3106.8,1.2364599]
[1641692546086,0.465,3107.8,3106.8,1.2364599]
[1641692546281,0.00397896,3107.1,3106.5,2.37905209]
[1641692546541,0.00397896,3107.1,3106.5,2.2785878]
[1641692546729,0.00341054,3107.0,3106.5,3.91705707]
[1641692546930,0.00341054,3107.0,3106.5,1.63999384]
[1641692547130,0.00284211,3106.9,3106.5,1.63999384]
[1641692547329,0.00284211,3106.9,3106.5,2.81965498]
[1641692547531,0.00227369,3106.8,3106.5,2.81965498]
[1641692547932,0.00170527,3106.7,3106.5,2.81965498]
[1641692548129,0.00170527,3106.7,3106.5,1.63999384]
[1641692548332,0.00113684,3106.6,3106.5,1.63999384]
[1641692548736,0.00113684,3106.6,3106.0,0.00113685]
[1641692548737,4.85,3106.5,3106.0,0.00113685]
[1641692548932,4.85,3106.5,3106.4,1.64003181]
[1641692549134,6.46045,3106.5,3106.4,3.181e-05]
[1641692549432,4.85,3106.4,3105.7,2.61214061]
[1641692549732,0.80531,3106.2,3105.8,0.00341054]
[1641692549933,0.8053,3106.1,3105.8,0.00341054]
[1641692550137,0.8053,3106.1,3104.7,5.84421574]
[1641692550138,2.41618,3106.0,3104.8,2.60816164]
[1641692550404,2.41618,3106.0,3105.4,0.0022737]
[1641692550405,0.465,3105.9,3105.4,0.0022737]
[1641692550600,4.85,3105.8,3104.8,2.60816164]
[1641692550802,4.85,3105.8,3104.7,4.09556577]
[1641692550803,0.80559,3105.4,3104.9,0.00284212]
[1641692551002,0.80559,3105.4,3104.3,4.10798739]
[1641692551003,0.8056,3105.2,3104.3,4.10798739]
[1641692551207,2.41697,3105.0,3104.3,4.09556577]
[1641692551405,2.31341,3105.0,3104.4,0.00284211]
[1641692551602,3.31341,3105.0,3104.4,0.00284211]
[1641692551802,0.80564,3104.8,3104.4,0.00284211]
[1641692552005,1.5076974,3105.0,3104.4,0.00284211]
[1641692552203,0.7021,3105.0,3104.4,0.00284211]
[1641692552402,0.07150882,3105.1,3104.3,0.00341054]
[1641692552403,0.80564,3104.7,3104.3,0.00341054]
[1641692553205,0.77040649,3104.8,3104.6,0.78435045]
[1641692553404,0.77040649,3104.8,3104.3,0.00341054]
[1641692553604,0.77040649,3104.8,3104.7,0.00113684]
[1641692553804,0.77040649,3104.8,3104.3,0.00341054]
[1641692554934,0.77040649,3104.8,3104.4,0.78504707]
[1641692555336,0.77040649,3104.8,3104.5,0.00227369]
[1641692555936,0.77040649,3104.8,3104.3,0.00341054]
[1641692556736,0.77040649,3104.8,3104.4,0.85364447]
[1641692557139,0.77040649,3104.8,3104.5,0.00227369]
[1641692558277,0.77040649,3104.8,3104.3,0.00341054]
[1641692558678,0.80571,3104.7,3104.3,1.63946885]
[1641692558879,0.8057,3104.5,3104.3,1.63946885]
[1641692559082,0.8057,3104.5,3104.2,6.16]
[1641692559083,5.315,3104.4,3104.2,1.35268885]
[1641692559280,5.38537197,3104.4,3104.2,1.35268885]
[1641692559481,5.38537197,3104.4,3103.1,7.489]
[1641692559482,4.85,3104.3,3103.1,7.489]
[1641692559779,4.85,3104.3,3103.2,0.00625265]
[1641692559780,0.465,3104.2,3103.2,0.00625265]
[1641692559981,0.765,3104.2,3103.2,0.00625265]
[1641692560180,4.19265749,3104.2,3103.2,0.00625265]
[1641692560381,0.8874,3104.2,3103.2,0.00625265]
[1641692560580,0.80589,3104.1,3103.2,0.00625265]
[1641692560780,0.80589,3103.7,3103.2,0.00625265]
[1641692562032,0.80589,3103.7,3103.3,1.03949893]
[1641692562229,0.80566,3103.9,3103.3,1.03949893]
[1641692562429,0.80566,3103.9,3103.4,0.00511581]
[1641692562630,0.80566,3103.9,3103.8,5.04520174]